bitfinex/quotes_BTCUSD_20230117
["timestamp","ask_amount","ask_price","bid_price","bid_amount"]
[1673986956321,0.00493344,21358.0,21357.0,2.35040465]
[1673986956588,0.00493344,21358.0,21357.0,2.43640465]
[1673986956853,0.00493344,21358.0,21357.0,2.35040465]
[1673986957101,0.00493344,21358.0,21357.0,2.72080465]
[1673986960215,0.00547134,21360.0,21358.0,0.15]
[1673986960496,0.00547134,21360.0,21359.0,2.341813]
[1673986960751,0.00547134,21360.0,21359.0,2.791813]
[1673986961815,0.00547134,21360.0,21359.0,3.075213]
[1673986962340,0.00547134,21360.0,21359.0,2.775213]
[1673986962646,0.00547134,21360.0,21359.0,2.579413]
[1673986964713,0.00547134,21360.0,21359.0,2.429413]
[1673986968333,0.00547134,21360.0,21359.0,2.729413]
[1673986972713,0.00547134,21360.0,21359.0,2.879413]
[1673986974005,0.00547134,21360.0,21359.0,2.355213]
[1673986975694,0.00547134,21360.0,21359.0,2.655213]
[1673986976153,0.00547134,21360.0,21359.0,2.729613]
[1673986977448,0.00547134,21360.0,21359.0,2.879613]
[1673986977745,0.00670655,21364.0,21360.0,0.15075971]
[1673986977996,0.00670655,21364.0,21363.0,0.0744]
[1673986978305,0.00670655,21364.0,21363.0,1.799166]
[1673986979638,0.01270655,21364.0,21363.0,1.799166]
[1673986979889,0.00670655,21364.0,21363.0,1.799166]
[1673986980641,0.01270655,21364.0,21363.0,1.805166]
[1673986981077,0.00670655,21364.0,21363.0,1.799166]
[1673986981325,0.00670655,21364.0,21363.0,1.841166]
[1673986982345,0.00670655,21364.0,21363.0,1.766766]
[1673986985385,0.00670655,21364.0,21363.0,1.724766]
[1673986985637,0.00670655,21364.0,21363.0,1.811766]
[1673986987440,0.00670655,21364.0,21363.0,1.886166]
[1673986987695,0.00670655,21364.0,21363.0,2.543066]
[1673986987999,0.00670655,21364.0,21363.0,1.138769]
[1673986988257,0.00670655,21364.0,21363.0,2.68300413]
[1673986988537,0.00670655,21364.0,21363.0,2.693066]
[1673986990129,0.00670655,21364.0,21363.0,2.606066]
[1673986990377,0.00670655,21364.0,21363.0,3.04743209]
[1673986990628,0.00670655,21364.0,21363.0,2.83800413]
[1673986990879,0.00670655,21364.0,21363.0,3.04743209]
[1673986991426,0.00670655,21364.0,21363.0,3.98362852]
[1673986991674,0.00670655,21364.0,21363.0,3.42269168]
[1673986991925,0.00670655,21364.0,21363.0,2.83800413]
[1673986992182,0.00670655,21364.0,21363.0,2.18160413]
[1673986992444,0.00670655,21364.0,21363.0,1.891666]
[1673986993458,0.00670655,21364.0,21363.0,3.76900958]
[1673986993724,0.00670655,21364.0,21363.0,4.13880718]
[1673986993960,0.00670655,21364.0,21363.0,4.28880718]
[1673986994213,0.00670655,21364.0,21363.0,4.63783913]
[1673986994463,0.00670655,21367.0,21364.0,0.15669345]
[1673986994713,0.00670655,21367.0,21366.0,0.57123246]
[1673986994987,0.00670655,21367.0,21366.0,0.89170146]
[1673986995226,0.00670655,21367.0,21366.0,2.137835]
[1673986995747,0.00670655,21367.0,21366.0,1.855135]
[1673986996328,0.00670655,21367.0,21366.0,2.26673447]
[1673986997073,0.00670655,21367.0,21366.0,1.96673447]
[1673986997323,0.00670655,21367.0,21366.0,2.05873447]
[1673986998117,0.00670655,21367.0,21366.0,1.90873447]
[1673986998386,0.00670655,21367.0,21366.0,1.83433447]
[1673987001944,0.00670655,21367.0,21366.0,2.13433447]
[1673987003542,0.00670655,21367.0,21366.0,1.83433447]
[1673987003793,0.00670655,21367.0,21366.0,2.13433447]
[1673987004562,0.00670655,21367.0,21366.0,1.83433447]
[1673987005079,0.00670655,21367.0,21366.0,2.13433447]
[1673987005850,0.00670655,21367.0,21366.0,2.04233447]
[1673987006119,0.00670655,21367.0,21366.0,2.13433447]
[1673987006378,0.00670655,21367.0,21366.0,2.20833447]
[1673987006665,0.00670655,21367.0,21366.0,2.35833447]
[1673987007144,0.00670655,21367.0,21366.0,2.05833447]
[1673987007412,0.00670655,21367.0,21366.0,1.96633447]
[1673987007668,0.00670655,21367.0,21366.0,2.26633447]
[1673987007936,0.00670655,21367.0,21366.0,2.35833447]
[1673987008193,0.00670655,21367.0,21366.0,2.26633447]
[1673987008954,0.00670655,21367.0,21366.0,2.35833447]
[1673987010525,0.00670655,21367.0,21366.0,2.05833447]
[1673987011060,0.00670655,21367.0,21366.0,2.35833447]
[1673987011319,0.00670655,21367.0,21366.0,2.28413447]
[1673987011846,0.00670655,21367.0,21366.0,1.91013447]
[1673987012123,0.00670655,21367.0,21366.0,1.76013447]
[1673987012633,0.00670655,21367.0,21366.0,1.66813447]
[1673987013703,0.00670655,21367.0,21366.0,2.04253447]
[1673987013949,0.00670655,21367.0,21366.0,2.13453447]
[1673987014213,0.00670655,21367.0,21366.0,2.27446693]
[1673987014483,0.00670655,21367.0,21366.0,2.28453447]
[1673987016061,0.00670655,21367.0,21366.0,2.28479585]
[1673987017171,6.55e-06,21367.0,21366.0,2.64019585]
[1673987017560,6.55e-06,21367.0,21366.0,3.71618879]
[1673987017564,0.00827968,21369.0,21367.0,5.345e-05]
[1673987017779,0.00827968,21369.0,21368.0,2.40671213]
[1673987018003,0.00827968,21369.0,21368.0,3.41697543]
[1673987018241,0.00827968,21369.0,21368.0,4.49289461]
[1673987018711,0.00827968,21369.0,21368.0,3.2770883]
[1673987018920,0.00827968,21369.0,21368.0,3.41687365]
[1673987019320,0.00827968,21369.0,21368.0,3.41688988]
[1673987019548,0.00827968,21369.0,21368.0,4.21303093]
[1673987019791,0.00827968,21369.0,21368.0,3.50874438]
[1673987020079,9.68e-06,21369.0,21368.0,3.23241177]
[1673987020337,9.68e-06,21369.0,21368.0,4.52179334]
[1673987020591,9.68e-06,21369.0,21368.0,4.80112955]
[1673987020835,9.68e-06,21369.0,21368.0,4.56000214]
[1673987021087,9.68e-06,21369.0,21368.0,4.21017099]
[1673987021335,9.68e-06,21369.0,21368.0,4.41969024]
[1673987021824,9.68e-06,21369.0,21368.0,4.56000214]
[1673987022357,9.68e-06,21369.0,21368.0,4.28066593]
[1673987022636,9.68e-06,21369.0,21368.0,2.89916576]
[1673987022828,0.00547134,21373.0,21370.0,0.15]
[1673987023081,0.00547134,21373.0,21372.0,0.4316]
[1673987023331,0.00547134,21373.0,21372.0,2.137871]
[1673987023812,0.00547134,21373.0,21372.0,2.27752185]
[1673987024059,0.00547134,21373.0,21372.0,2.137871]
[1673987024301,0.00547134,21373.0,21372.0,2.229871]
[1673987025301,0.00547134,21373.0,21372.0,2.71294906]
[1673987025544,0.00547134,21373.0,21372.0,2.13014906]
[1673987025785,0.00547134,21373.0,21372.0,1.83134906]
[1673987029014,0.00547134,21373.0,21372.0,2.13134906]
[1673987031027,0.00547134,21373.0,21372.0,2.20574906]
[1673987031523,0.00547134,21373.0,21372.0,2.56979991]
[1673987031765,0.00547134,21373.0,21372.0,2.77927619]
[1673987032012,0.00547134,21373.0,21372.0,2.56979991]
[1673987032261,0.00547134,21373.0,21372.0,2.43014906]
[1673987040139,0.00547134,21373.0,21372.0,1.98014906]
[1673987042061,0.00547134,21373.0,21372.0,2.28014906]
[1673987042306,0.00547134,21373.0,21372.0,1.98014906]
[1673987042539,0.00547134,21373.0,21372.0,2.13134906]
[1673987042811,0.00547134,21373.0,21372.0,1.83134906]
[1673987043046,0.00547134,21373.0,21372.0,2.13134906]
[1673987043302,0.00547134,21373.0,21372.0,1.83134906]
[1673987043545,0.00547134,21373.0,21372.0,2.13134906]
[1673987043779,0.00547134,21373.0,21372.0,1.83134906]
[1673987044022,0.00547134,21373.0,21372.0,2.13134906]
[1673987044255,0.00547134,21373.0,21372.0,1.83134906]
[1673987045522,0.00547134,21373.0,21372.0,2.13134906]
[1673987046012,0.00547134,21373.0,21372.0,2.08187706]
[1673987046505,0.00547134,21373.0,21372.0,2.58187706]
[1673987046984,0.00547134,21373.0,21372.0,2.28187706]
[1673987047710,0.00547134,21373.0,21372.0,2.58187706]
[1673987048730,0.00547134,21373.0,21372.0,2.28187706]
[1673987050925,0.00547134,21373.0,21372.0,2.27847706]
[1673987052165,0.00547134,21373.0,21372.0,2.57847706]
[1673987053165,0.00547134,21373.0,21372.0,2.71812791]
[1673987053407,0.00547134,21373.0,21372.0,2.57847706]
[1673987053904,0.00547134,21373.0,21372.0,2.27847706]
[1673987054141,0.00547134,21373.0,21372.0,2.57847706]
[1673987056093,0.00547134,21373.0,21372.0,2.27847706]
[1673987056615,0.00547134,21373.0,21372.0,1.527802]
[1673987056851,0.01397134,21373.0,21372.0,1.527802]
[1673987057090,0.00547134,21373.0,21372.0,1.527802]
[1673987058820,0.00547134,21373.0,21372.0,1.98786485]
[1673987059534,0.00547134,21373.0,21372.0,1.848214]
[1673987060259,0.00547134,21373.0,21372.0,4.06865714]
[1673987060749,0.00547134,21373.0,21372.0,4.14305714]
[1673987060989,0.00547134,21373.0,21372.0,2.92869547]
[1673987061472,0.00547134,21373.0,21372.0,2.57253528]
[1673987061733,0.00547134,21373.0,21372.0,2.92872881]
[1673987062681,0.00547134,21373.0,21372.0,3.86457353]
[1673987063671,0.00547134,21373.0,21372.0,3.47257353]
[1673987063920,0.00647134,21373.0,21372.0,2.05558251]
[1673987064676,0.00647134,21373.0,21372.0,4.14695364]
[1673987064944,0.00647134,21373.0,21372.0,3.93700087]
[1673987065190,0.00647134,21373.0,21372.0,4.286128]
[1673987066604,0.00647134,21373.0,21372.0,4.28669739]
[1673987066846,0.00647134,21373.0,21372.0,4.00682629]
[1673987067340,0.00647134,21373.0,21372.0,4.28669373]
[1673987067574,0.00647134,21373.0,21372.0,4.2866979]
[1673987067823,0.00647134,21373.0,21372.0,4.00682629]
[1673987068060,0.00985542,21376.0,21373.0,0.00033226]
[1673987068326,0.00985542,21376.0,21375.0,0.28992412]
[1673987068560,0.00985542,21376.0,21375.0,2.05589431]
[1673987068818,0.00985542,21376.0,21375.0,1.706084]
[1673987070273,0.01085542,21376.0,21375.0,1.92010812]
[1673987070817,0.01085542,21376.0,21375.0,3.57348034]
[1673987071057,0.01085542,21376.0,21375.0,3.57334048]
[1673987071306,0.01085542,21376.0,21375.0,1.92002518]
[1673987071545,0.01085542,21376.0,21375.0,2.01302518]
[1673987072052,0.01085542,21376.0,21375.0,2.22277151]
[1673987072302,0.00985542,21376.0,21375.0,2.12977151]
[1673987072557,0.00985542,21376.0,21375.0,2.22177151]
[1673987072846,0.00985542,21376.0,21375.0,1.92002518]
[1673987073121,0.00985542,21376.0,21375.0,2.01202518]
[1673987073573,0.00985542,21376.0,21375.0,2.22177151]
[1673987073830,0.00985542,21376.0,21375.0,2.12977151]
[1673987074065,0.00985542,21376.0,21375.0,2.01202518]
[1673987074546,0.00985542,21376.0,21375.0,2.22177151]
[1673987075261,0.00985542,21376.0,21375.0,2.58999654]
[1673987075525,0.00985542,21376.0,21375.0,3.45584934]
[1673987076486,0.00985542,21376.0,21375.0,2.22153326]
[1673987076727,0.00985542,21376.0,21375.0,2.0119237]
[1673987077002,0.00985542,21376.0,21375.0,1.9199237]
[1673987077255,0.01132927,21378.0,21375.0,1.9199237]
[1673987077256,0.01132927,21378.0,21376.0,0.61753301]
[1673987077510,0.01132927,21378.0,21377.0,4.21939023]
[1673987078022,0.01132927,21378.0,21377.0,4.07906696]
[1673987078328,0.01132927,21378.0,21377.0,4.22906696]
[1673987078586,0.01132927,21378.0,21377.0,2.85556669]
[1673987078821,0.01132927,21378.0,21377.0,4.5079091]
[1673987079312,0.01132927,21378.0,21377.0,2.85555254]
[1673987079843,0.01132927,21378.0,21377.0,2.94755254]
[1673987080569,0.01132927,21378.0,21377.0,3.38572857]
[1673987080829,0.01132927,21378.0,21377.0,4.60059106]
[1673987082038,0.01132927,21378.0,21377.0,4.46183895]
[1673987082569,2.7e-07,21378.0,21377.0,4.46183895]
[1673987082802,0.0105291,21379.0,21378.0,0.67445675]
[1673987083035,0.0105291,21379.0,21378.0,2.72180189]
[1673987083282,0.0105291,21379.0,21378.0,3.16119434]
[1673987083535,0.0105291,21379.0,21378.0,2.30480875]
[1673987084494,0.0105291,21379.0,21378.0,2.39680875]
[1673987084744,0.0105291,21379.0,21378.0,2.32240875]
[1673987087487,0.0105291,21379.0,21378.0,1.79800875]
[1673987090999,0.0105291,21379.0,21378.0,1.47759675]
[1673987091246,0.0105291,21379.0,21378.0,1.79800875]
[1673987092233,0.0105291,21379.0,21378.0,2.09800875]
[1673987093228,0.0105291,21379.0,21378.0,2.24800875]
[1673987095460,0.0105291,21379.0,21378.0,2.32220875]
[1673987096221,1e-07,21379.0,21378.0,2.32220875]
[1673987096470,0.01079537,21380.0,21379.0,0.16165895]
[1673987096724,0.01079537,21380.0,21379.0,1.93099447]
[1673987097713,0.01079537,21380.0,21379.0,2.02299447]
[1673987097943,0.01079537,21380.0,21379.0,1.88366695]
[1673987101190,0.01079537,21380.0,21379.0,1.80956695]
[1673987103663,0.01079537,21380.0,21379.0,1.35956695]
[1673987104159,0.01079537,21380.0,21379.0,1.65956695]
[1673987105162,0.01079537,21380.0,21379.0,1.80956695]
[1673987105411,0.01079537,21380.0,21379.0,1.94889447]
[1673987105928,0.01079537,21380.0,21379.0,1.80956695]
[1673987108067,0.01079537,21380.0,21379.0,1.94889447]
[1673987108322,0.01079537,21380.0,21379.0,1.80956695]
[1673987108939,0.01079537,21380.0,21379.0,1.94889447]
[1673987110804,0.01079537,21380.0,21379.0,3.46156285]
[1673987111055,0.01079537,21380.0,21379.0,3.60140149]
[1673987111329,0.01079537,21380.0,21379.0,3.53735392]
[1673987111570,0.01079537,21380.0,21379.0,3.816603]
[1673987111823,0.01079537,21380.0,21379.0,3.44535392]
[1673987112069,0.01079537,21380.0,21379.0,3.53735392]
[1673987112326,0.01079537,21380.0,21379.0,3.44535392]
[1673987112584,0.01079537,21380.0,21379.0,3.53735392]
[1673987115015,0.01079537,21380.0,21379.0,3.23735392]
[1673987115318,0.01079537,21380.0,21379.0,1.85887065]
[1673987115568,0.01079537,21380.0,21379.0,2.22727712]
[1673987115791,0.01079537,21380.0,21379.0,3.3024946]
[1673987116613,0.01079537,21380.0,21379.0,1.9493036]
[1673987116884,0.01079537,21380.0,21379.0,2.52740736]
[1673987117674,0.01079537,21380.0,21379.0,2.07740736]
[1673987117948,0.01079537,21380.0,21379.0,1.03915495]
[1673987118212,0.01079537,21380.0,21379.0,0.57140695]
[1673987118466,0.33120737,21380.0,21379.0,0.57140695]
[1673987120331,0.33120737,21380.0,21379.0,0.10365895]
[1673987120581,0.55336793,21380.0,21379.0,0.10365895]
[1673987121627,0.55336793,21380.0,21379.0,0.01165895]
[1673987121890,0.55336793,21380.0,21379.0,0.10365895]
[1673987122347,0.90151935,21380.0,21379.0,0.10354393]
[1673987122617,0.62299822,21380.0,21379.0,0.10354393]
[1673987122866,0.90151935,21380.0,21379.0,0.10354393]
[1673987123136,0.90151935,21380.0,21379.0,0.01154393]
[1673987123371,0.63099822,21380.0,21379.0,0.01854393]
[1673987123623,0.77096652,21380.0,21379.0,0.01854393]
[1673987123881,0.76296652,21380.0,21379.0,0.01154393]
[1673987124132,0.77796652,21380.0,21379.0,0.01854393]
[1673987124380,1.23069252,21380.0,21379.0,0.01154393]
[1673987124633,1.38424535,21380.0,21379.0,0.01854393]
[1673987124881,1.10572422,21380.0,21379.0,0.01854393]
[1673987125392,1.24563836,21380.0,21379.0,0.01854393]
[1673987126645,1.71336436,21380.0,21379.0,0.01854393]
[1673987126890,1.57345022,21380.0,21379.0,0.01854393]
[1673987127629,1.71331594,21380.0,21379.0,0.01854393]
[1673987129524,2.14917752,21380.0,21379.0,0.01854393]
[1673987129738,3.4066821,21380.0,21379.0,0.01854393]
[1673987130249,3.5566821,21380.0,21379.0,0.01854393]
[1673987130505,3.27954575,21380.0,21379.0,0.01854393]
[1673987130760,3.12954575,21380.0,21379.0,0.01854393]
[1673987131785,3.40903086,21380.0,21379.0,0.01854393]
[1673987132810,3.12613086,21380.0,21379.0,0.01854393]
[1673987133577,2.81653599,21380.0,21379.0,0.01854393]
[1673987133827,3.16607218,21380.0,21379.0,0.01854393]
[1673987134102,2.8162499,21380.0,21379.0,0.01854393]
[1673987134715,3.16578609,21380.0,21379.0,0.01854393]
[1673987134870,2.49404738,21380.0,21379.0,0.01854393]
[1673987135138,2.88621974,21380.0,21379.0,0.01854393]
[1673987135399,2.53668355,21380.0,21379.0,0.01854393]
[1673987135677,2.68668355,21380.0,21379.0,0.01854393]
[1673987135923,2.73555223,21380.0,21379.0,0.01854393]
[1673987136445,3.01915223,21380.0,21379.0,0.01854393]
[1673987137231,2.86915223,21380.0,21379.0,0.01854393]
[1673987137487,3.21824064,21380.0,21379.0,0.01854393]
[1673987138803,1.7532736,21380.0,21379.0,0.01854393]
[1673987139301,1.61368732,21380.0,21379.0,0.01854393]
[1673987139595,1.89287199,21380.0,21379.0,0.01854393]
[1673987139820,2.78999832,21380.0,21379.0,0.01854393]
[1673987140574,3.08999832,21380.0,21379.0,0.01854393]
[1673987143147,2.74090991,21380.0,21379.0,0.01854393]
[1673987143394,2.19283817,21380.0,21379.0,0.01854393]
[1673987143922,2.62869975,21380.0,21379.0,0.01854393]
[1673987145693,2.41934694,21380.0,21379.0,0.01854393]
[1673987145936,2.62870693,21380.0,21379.0,0.01854393]
[1673987146728,2.62870693,21380.0,21379.0,0.01843458]
[1673987146989,2.41934694,21380.0,21379.0,0.01843458]
[1673987149738,3.08896514,21380.0,21379.0,0.01843458]
[1673987150711,2.73987673,21380.0,21379.0,0.01843458]
[1673987151296,3.08896514,21380.0,21379.0,0.01843458]
[1673987151513,2.80978047,21380.0,21379.0,0.01843458]
[1673987153269,2.46069206,21380.0,21379.0,0.01843458]
[1673987154240,2.46069206,21380.0,21379.0,0.007]
[1673987154745,2.02483048,21380.0,21379.0,0.007]
[1673987155029,2.37434781,21380.0,21379.0,0.007]
[1673987155278,2.02483048,21380.0,21379.0,0.007]
[1673987155531,2.46069206,21380.0,21379.0,0.007]
[1673987156601,2.87847375,21380.0,21379.0,0.007]
[1673987157676,2.44261217,21380.0,21379.0,0.007]
[1673987157954,2.87847375,21380.0,21379.0,0.007]
[1673987158740,2.80427375,21380.0,21379.0,0.007]
[1673987159260,2.38649206,21380.0,21379.0,0.007]
[1673987159513,1.95063048,21380.0,21379.0,0.007]
[1673987160062,2.38649206,21380.0,21379.0,0.007]
[1673987160414,1.98649206,21380.0,21379.0,0.007]
[1673987160591,1.49468698,21380.0,21379.0,0.007]
[1673987160849,1.42461065,21380.0,21379.0,0.007]
[1673987161116,1.07440448,21380.0,21379.0,0.007]
[1673987161645,1.96241298,21380.0,21379.0,0.007]
[1673987161904,2.27091298,21380.0,21379.0,0.007]
[1673987166523,1.85063048,21380.0,21379.0,0.007]
[1673987167032,2.27128512,21380.0,21379.0,0.007]
[1673987167843,1.97128512,21380.0,21379.0,0.007]
[1673987168884,1.84213048,21380.0,21379.0,0.007]
[1673987169661,1.54213048,21380.0,21379.0,0.007]
[1673987170168,1.96292479,21380.0,21379.0,0.007]
[1673987170417,1.97142479,21380.0,21379.0,0.007]
[1673987171186,1.95642479,21380.0,21377.0,0.1095]
[1673987171447,0.35065064,21378.0,21376.0,0.1088]
[1673987171697,0.75373776,21377.0,21376.0,0.1088]
[1673987171959,0.49934476,21377.0,21376.0,0.2179]
[1673987172218,0.21886204,21377.0,21376.0,0.2179]
[1673987172463,0.49934476,21377.0,21376.0,0.2179]
[1673987172966,0.21886204,21377.0,21376.0,0.2179]
[1673987173482,0.27886204,21377.0,21376.0,0.2189]
[1673987173985,0.41908684,21377.0,21376.0,0.2189]
[1673987174246,0.2087848,21377.0,21376.0,1.154528]
[1673987174503,0.2002848,21377.0,21376.0,1.154528]
[1673987175023,0.06006,21377.0,21376.0,1.154528]
[1673987175276,0.2002848,21377.0,21376.0,1.154528]
[1673987175572,0.06006,21377.0,21376.0,1.154528]
[1673987177005,0.05506,21377.0,21376.0,1.154528]
[1673987177781,0.05506,21377.0,21376.0,1.584391]
[1673987178776,0.05506,21377.0,21376.0,2.38122765]
[1673987179288,6e-05,21377.0,21376.0,2.38022765]
[1673987179549,6e-05,21377.0,21376.0,1.597491]
[1673987179550,0.00306,21377.0,21376.0,1.597491]
[1673987179798,6e-05,21377.0,21376.0,1.582491]
[1673987180046,0.00606,21377.0,21376.0,1.606491]
[1673987180292,0.006,21377.0,21376.0,1.606491]
[1673987181058,0.006,21377.0,21376.0,1.74622765]
[1673987181307,0.006,21377.0,21376.0,2.40322765]
[1673987182054,0.006,21377.0,21376.0,2.263491]
[1673987183631,0.03061553,21377.0,21376.0,2.263491]
[1673987185376,0.03061553,21377.0,21376.0,2.413491]
[1673987185853,0.03061553,21377.0,21376.0,2.713491]
[1673987186108,0.03061553,21377.0,21376.0,2.85322765]
[1673987186367,0.03061553,21377.0,21376.0,5.17284896]
[1673987186582,5.53e-06,21377.0,21376.0,5.17249013]
[1673987186868,5.53e-06,21378.0,21377.0,0.15006]
[1673987187135,5.53e-06,21378.0,21377.0,3.41789412]
[1673987187395,5.53e-06,21378.0,21377.0,2.82907587]
[1673987187895,5.53e-06,21378.0,21377.0,2.689607]
[1673987188407,5.53e-06,21378.0,21377.0,2.52907587]
[1673987188625,5.53e-06,21378.0,21377.0,3.27564857]
[1673987189645,5.53e-06,21378.0,21377.0,3.48485188]
[1673987189896,5.53e-06,21378.0,21377.0,5.38683174]
[1673987190149,5.53e-06,21378.0,21377.0,5.73664205]
[1673987190978,5.53e-06,21378.0,21377.0,5.82864205]
[1673987191179,0.0105291,21381.0,21377.0,6.94374205]
[1673987191446,0.0105291,21381.0,21380.0,1.641]
[1673987191689,0.0105291,21381.0,21380.0,4.132767]
[1673987192453,0.01219748,21384.0,21381.0,0.15]
[1673987192704,0.01219748,21384.0,21382.0,2.191095]
[1673987192965,0.01219748,21384.0,21383.0,0.320363]
[1673987193229,0.00719748,21384.0,21383.0,0.770363]
[1673987193504,0.00719748,21384.0,21383.0,1.405685]
[1673987193716,0.00719748,21384.0,21383.0,1.89023421]
[1673987194211,0.00719748,21384.0,21383.0,2.19023421]
[1673987194734,0.00719748,21384.0,21383.0,2.28223421]
[1673987194972,0.00719748,21384.0,21383.0,2.96683421]
[1673987195492,0.00719748,21384.0,21383.0,2.96793421]
[1673987196059,0.00719748,21384.0,21383.0,2.16113421]
[1673987196276,0.00719748,21384.0,21383.0,2.05163421]
[1673987196532,0.14635748,21384.0,21383.0,1.73127121]
[1673987197056,0.00719748,21384.0,21383.0,1.73127121]
[1673987197298,0.00719748,21384.0,21383.0,1.26361021]
[1673987197299,0.14635748,21384.0,21383.0,1.26361021]
[1673987197548,0.14635748,21384.0,21383.0,0.73975366]
[1673987197817,0.46672048,21384.0,21383.0,0.73975366]
[1673987198063,0.46672048,21384.0,21383.0,1.20741466]
[1673987198319,0.00719748,21384.0,21383.0,1.78407566]
[1673987199629,0.00719748,21384.0,21383.0,0.73835366]
[1673987199630,0.14635748,21384.0,21383.0,0.73835366]
[1673987199900,0.47522048,21384.0,21383.0,0.73835366]
[1673987200667,0.88543848,21384.0,21383.0,0.73835366]
[1673987200939,0.62249648,21384.0,21383.0,0.73835366]
[1673987201246,0.47522048,21384.0,21383.0,0.73835366]
[1673987201449,0.15485748,21384.0,21383.0,0.73835366]
[1673987201994,0.15485748,21384.0,21383.0,0.64635366]
[1673987202234,0.33606048,21384.0,21383.0,0.64635366]
[1673987202516,0.01569748,21384.0,21383.0,0.64635366]
[1673987203296,0.01669748,21384.0,21383.0,0.73135366]
[1673987203572,0.01669748,21384.0,21383.0,1.19901466]
[1673987204630,0.00819748,21384.0,21383.0,1.19901466]
[1673987205174,0.14735748,21384.0,21383.0,0.73135366]
[1673987205429,0.46772048,21384.0,21383.0,0.73135366]
[1673987205964,0.46772048,21384.0,21383.0,1.66667566]
[1673987206244,0.00819748,21384.0,21383.0,1.19901466]
[1673987206795,0.00819748,21384.0,21383.0,0.73135366]
[1673987207072,0.14735748,21384.0,21383.0,1.19901466]
[1673987207333,0.14735748,21384.0,21383.0,0.73135366]
[1673987208145,0.00819748,21384.0,21383.0,0.73135366]
[1673987208407,0.00819748,21384.0,21383.0,1.66667566]
[1673987209236,0.00819748,21384.0,21383.0,0.73135366]
[1673987210248,0.14735748,21384.0,21383.0,0.73135366]
[1673987210767,0.14735748,21384.0,21383.0,1.19901466]
[1673987211025,0.00819748,21384.0,21383.0,1.66667566]
[1673987211290,0.00819748,21384.0,21383.0,1.77617566]
[1673987212260,0.14735748,21384.0,21383.0,1.77617566]
[1673987212517,0.14735748,21384.0,21383.0,0.84085366]
[1673987214094,0.00819748,21384.0,21383.0,0.84085366]
[1673987215121,0.13457748,21384.0,21383.0,0.84085366]
[1673987216391,0.13457748,21384.0,21383.0,0.84079032]
[1673987218270,0.00819748,21384.0,21383.0,0.84079032]
[1673987218780,0.00819748,21384.0,21383.0,0.73179032]
[1673987221212,0.00819748,21384.0,21383.0,0.62229032]
[1673987221716,0.87536448,21386.0,21383.0,0.62229032]
[1673987221967,0.0085,21385.0,21383.0,1.55761232]
[1673987223468,0.64271158,21387.0,21383.0,1.47261232]
[1673987223725,0.01157822,21387.0,21386.0,0.2184]
[1673987223986,0.01157822,21387.0,21386.0,1.15359]
[1673987224789,0.01857822,21387.0,21386.0,1.16059]
[1673987231315,0.01157822,21387.0,21386.0,1.473953]
[1673987231569,0.01757822,21387.0,21386.0,1.15959]
[1673987232538,0.01157822,21387.0,21386.0,1.15359]
[1673987232759,0.01757822,21387.0,21386.0,1.15359]
[1673987233508,0.01757822,21387.0,21386.0,1.473953]
[1673987233964,0.01757822,21387.0,21386.0,1.15359]
[1673987235010,0.01757822,21387.0,21386.0,0.685995]
[1673987235274,0.47792166,21387.0,21385.0,0.88634028]
[1673987235531,0.40292244,21386.0,21385.0,0.41872728]
[1673987236056,0.40292244,21386.0,21384.0,0.467624]
[1673987236057,0.62140681,21386.0,21384.0,0.467624]
[1673987236317,0.320363,21385.0,21383.0,0.576546]
[1673987236576,0.262942,21384.0,21383.0,0.576546]
[1673987236850,0.34996481,21385.0,21383.0,0.576546]
[1673987237153,0.34996481,21385.0,21382.0,0.927168]
[1673987237154,0.46034344,21384.0,21382.0,0.467668]
[1673987237608,0.46034344,21384.0,21383.0,0.006]
[1673987237609,0.34996481,21384.0,21383.0,0.006]
[1673987237869,0.46034344,21384.0,21383.0,0.006]
[1673987238379,0.67032781,21384.0,21380.0,0.577608]
[1673987238644,0.262942,21383.0,21382.0,0.056]
[1673987238906,0.45926481,21384.0,21381.0,0.467685]
[1673987239149,0.46034344,21383.0,21381.0,0.935375]
[1673987239412,0.262942,21382.0,21381.0,0.935375]
[1673987239681,0.13998044,21383.0,21381.0,0.935375]
[1673987239924,0.13998044,21383.0,21381.0,0.467685]
[1673987240185,0.320363,21382.0,21377.0,0.6762538]
[1673987240436,0.98017426,21381.0,21377.0,0.467833]
[1673987240703,0.320363,21380.0,21377.0,0.935625]
[1673987240948,0.262942,21379.0,21377.0,0.935625]
[1673987241206,0.320363,21378.0,21377.0,0.935625]
[1673987241466,0.1095,21380.0,21377.0,0.935625]
[1673987241975,0.1095,21380.0,21377.0,0.942625]
[1673987241976,0.326363,21379.0,21377.0,0.942625]
[1673987242250,0.262942,21378.0,21377.0,0.467852]
[1673987242485,0.262942,21378.0,21377.0,0.474852]
[1673987242735,0.320363,21378.0,21377.0,0.467852]
[1673987242996,0.429863,21378.0,21377.0,0.00706]
[1673987243252,0.538963,21378.0,21377.0,0.00706]
[1673987243517,1.489003,21378.0,21377.0,0.01306]
[1673987243769,0.912133,21378.0,21377.0,0.01306]
[1673987244018,0.912133,21378.0,21377.0,0.01297426]
[1673987248414,0.444363,21378.0,21377.0,0.01297426]
[1673987249162,0.124,21378.0,21377.0,0.01297426]
[1673987249406,0.0145,21378.0,21377.0,0.01297426]
[1673987250463,0.006,21378.0,21377.0,0.01297426]
[1673987251196,0.006,21378.0,21377.0,1.05745826]
[1673987254928,0.89480614,21382.0,21377.0,1.05745826]
[1673987254929,0.35006565,21385.0,21378.0,0.006]
[1673987255192,0.01157822,21387.0,21379.0,0.33537865]
[1673987255459,0.01157822,21387.0,21380.0,2.9174563]
[1673987255715,0.01157822,21387.0,21381.0,0.7465603]
[1673987255975,0.01157822,21387.0,21386.0,0.3271]
[1673987256250,0.01157822,21387.0,21386.0,2.050248]
[1673987256714,0.01157822,21387.0,21386.0,3.008348]
[1673987256717,0.01157822,21387.0,21386.0,3.52944881]
[1673987256968,0.01157822,21387.0,21386.0,4.08427544]
[1673987257747,0.01157822,21387.0,21386.0,3.34557544]
[1673987259374,0.01157822,21387.0,21386.0,2.49074881]
[1673987260162,0.01157822,21387.0,21386.0,2.79074881]
[1673987262494,0.01157822,21387.0,21386.0,2.69274881]
[1673987262752,0.01157822,21387.0,21386.0,2.78974881]
[1673987263005,0.01157822,21387.0,21386.0,2.95734381]
[1673987263518,0.01157822,21387.0,21386.0,2.88304381]
[1673987267179,0.01157822,21387.0,21386.0,2.41544881]
[1673987269098,0.01157822,21387.0,21386.0,2.09508581]
[1673987269360,0.01157822,21387.0,21386.0,2.02088581]
[1673987269909,0.01157822,21387.0,21386.0,2.34124881]
[1673987271305,0.01157822,21387.0,21386.0,2.41554881]
[1673987271844,0.01157822,21387.0,21386.0,2.09518581]
[1673987273393,0.0114665,21387.0,21386.0,2.09518581]
[1673987275880,0.0114665,21387.0,21386.0,2.41554881]